[Event "December 5 Late 2023"]
[Site "https://www.chess.com"]
[Date "2023.12.05"]
[Round "6"]
[White "Nakamura, Hikaru"]
[Black "Sarana, Alexey"]
[Result "1/2-1/2"]
[Board "2"]
[TimeControl "180+1"]
[WhiteFideId "2016192"]
[BlackFideId "24133795"]
[WhiteElo "3238"]
[BlackElo "3009"]
[WhiteTeam "USA"]
[BlackTeam "SRB"]
[WhiteClock "0:00:09"]
[BlackClock "0:00:06"]

1. Nf3 {[%clk 0:03:00]}  d5 {[%clk 0:03:00]} 2. g3 {[%clk 0:03:01]}  g6 {[%clk 0:02:58]} 3. d4 {[%clk 0:02:55]}  Bg7 {[%clk 0:02:57]} 4. Bg2 {[%clk 0:02:55]}  Nf6 {[%clk 0:02:57]} 5. O-O {[%clk 0:02:54]}  O-O {[%clk 0:02:58]} 6. c3 {[%clk 0:02:50]}  a5 {[%clk 0:02:57]} 7. Nbd2 {[%clk 0:02:45]}  Nbd7 {[%clk 0:02:57]} 8. Re1 {[%clk 0:02:44]}  c5 {[%clk 0:02:56]} 9. dxc5 {[%clk 0:02:36]}  Nxc5 {[%clk 0:02:57]} 10. Nb3 {[%clk 0:02:37]}  b6 {[%clk 0:02:55]} 11. Be3 {[%clk 0:02:32]}  Nfe4 {[%clk 0:02:49]} 12. Nfd2 {[%clk 0:02:30]}  Bf5 {[%clk 0:02:22]} 13. Nxc5 {[%clk 0:01:54]}  Nxc5 {[%clk 0:02:21]} 14. Bd4 {[%clk 0:01:54]}  Qd6 {[%clk 0:02:13]} 15. Nb3 {[%clk 0:01:41]}  Nxb3 {[%clk 0:01:40]} 16. Qxb3 {[%clk 0:01:34]}  Bxd4 {[%clk 0:01:40]} 17. cxd4 {[%clk 0:01:34]}  e6 {[%clk 0:01:27]} 18. Rac1 {[%clk 0:01:30]}  a4 {[%clk 0:01:13]} 19. Qc3 {[%clk 0:01:26]}  Rfc8 {[%clk 0:01:08]} 20. Qd2 {[%clk 0:01:13]}  h5 {[%clk 0:01:02]} 21. f3 {[%clk 0:01:11]}  e5 {[%clk 0:00:47]} 22. dxe5 {[%clk 0:01:06]}  Qxe5 {[%clk 0:00:47]} 23. f4 {[%clk 0:01:07]}  Qe7 {[%clk 0:00:44]} 24. Bxd5 {[%clk 0:00:35]}  Rxc1 {[%clk 0:00:44]} 25. Bxa8 {[%clk 0:00:16]}  Rxe1+ {[%clk 0:00:19]} 26. Qxe1 {[%clk 0:00:17]}  Qe3+ {[%clk 0:00:19]} 27. Kf1 {[%clk 0:00:17]}  Bh3+ {[%clk 0:00:15]} 28. Bg2 {[%clk 0:00:16]}  Bxg2+ {[%clk 0:00:15]} 29. Kxg2 {[%clk 0:00:17]}  Qe4+ {[%clk 0:00:16]} 30. Kh3 {[%clk 0:00:12]}  Qe6+ {[%clk 0:00:16]} 31. Kg2 {[%clk 0:00:13]}  Qe4+ {[%clk 0:00:16]} 32. Kh3 {[%clk 0:00:09]}  Qe6+ {[%clk 0:00:11]} 33. Kg2 {[%clk 0:00:09]}  Qe4+ {[%clk 0:00:06]} 1/2-1/2

[Event "December 5 Late 2023"]
[Site "https://www.chess.com"]
[Date "2023.12.05"]
[Round "6"]
[White "Paravyan, David"]
[Black "Naroditsky, Daniel"]
[Result "1/2-1/2"]
[Board "3"]
[TimeControl "180+1"]
[WhiteFideId "4194985"]
[BlackFideId "2026961"]
[WhiteElo "3003"]
[BlackElo "3173"]
[WhiteTeam "FID"]
[BlackTeam "USA"]
[WhiteClock "0:02:20"]
[BlackClock "0:02:10"]

1. e4 {[%clk 0:03:00]}  Nc6 {[%clk 0:02:58]} 2. Nf3 {[%clk 0:03:01]}  d6 {[%clk 0:02:59]} 3. d4 {[%clk 0:03:00]}  Nf6 {[%clk 0:02:59]} 4. c3 {[%clk 0:03:01]}  g6 {[%clk 0:02:58]} 5. Bb5 {[%clk 0:02:57]}  Bd7 {[%clk 0:02:54]} 6. Qe2 {[%clk 0:02:54]}  Bg7 {[%clk 0:02:53]} 7. O-O {[%clk 0:02:53]}  O-O {[%clk 0:02:53]} 8. Rd1 {[%clk 0:02:54]}  a6 {[%clk 0:02:51]} 9. Bd3 {[%clk 0:02:52]}  e5 {[%clk 0:02:50]} 10. dxe5 {[%clk 0:02:49]}  Nxe5 {[%clk 0:02:50]} 11. Nxe5 {[%clk 0:02:50]}  dxe5 {[%clk 0:02:51]} 12. Nd2 {[%clk 0:02:50]}  Qe7 {[%clk 0:02:50]} 13. Nf3 {[%clk 0:02:49]}  Bc6 {[%clk 0:02:41]} 14. Bg5 {[%clk 0:02:45]}  h6 {[%clk 0:02:42]} 15. Bxf6 {[%clk 0:02:45]}  Bxf6 {[%clk 0:02:38]} 16. Bc4 {[%clk 0:02:46]}  Rad8 {[%clk 0:02:36]} 17. Bd5 {[%clk 0:02:21]}  Bxd5 {[%clk 0:02:28]} 18. Rxd5 {[%clk 0:02:22]}  c6 {[%clk 0:02:15]} 19. Rxd8 {[%clk 0:02:21]}  Rxd8 {[%clk 0:02:10]} 20. Rd1 {[%clk 0:02:20]} 1/2-1/2

[Event "December 5 Late 2023"]
[Site "https://www.chess.com"]
[Date "2023.12.05"]
[Round "6"]
[White "Zhigalko, Sergei"]
[Black "Nepomniachtchi, Ian"]
[Result "1-0"]
[Board "6"]
[TimeControl "180+1"]
[WhiteFideId "13502956"]
[BlackFideId "4168119"]
[WhiteElo "2932"]
[BlackElo "3109"]
[WhiteTeam "BLR"]
[BlackTeam "RUS"]
[WhiteClock "0:00:04"]
[BlackClock "0:00:16"]

1. e4 {[%clk 0:03:00]}  e5 {[%clk 0:02:59]} 2. Nf3 {[%clk 0:03:00]}  Nc6 {[%clk 0:02:55]} 3. Bc4 {[%clk 0:03:00]}  Nf6 {[%clk 0:02:55]} 4. d3 {[%clk 0:03:00]}  Bc5 {[%clk 0:02:55]} 5. O-O {[%clk 0:03:00]}  d6 {[%clk 0:02:55]} 6. c3 {[%clk 0:02:59]}  O-O {[%clk 0:02:55]} 7. Nbd2 {[%clk 0:02:59]}  a6 {[%clk 0:02:54]} 8. Bb3 {[%clk 0:02:58]}  Ba7 {[%clk 0:02:53]} 9. h3 {[%clk 0:02:58]}  h6 {[%clk 0:02:52]} 10. Re1 {[%clk 0:02:57]}  Be6 {[%clk 0:02:50]} 11. Nf1 {[%clk 0:02:57]}  Qd7 {[%clk 0:02:46]} 12. Be3 {[%clk 0:02:53]}  Rad8 {[%clk 0:02:39]} 13. Bxa7 {[%clk 0:02:50]}  Nxa7 {[%clk 0:02:40]} 14. d4 {[%clk 0:02:50]}  exd4 {[%clk 0:02:33]} 15. cxd4 {[%clk 0:02:43]}  Bxb3 {[%clk 0:02:32]} 16. Qxb3 {[%clk 0:02:42]}  Qb5 {[%clk 0:02:32]} 17. Qc2 {[%clk 0:02:35]}  Qb6 {[%clk 0:02:28]} 18. Ng3 {[%clk 0:02:32]}  Rfe8 {[%clk 0:02:24]} 19. Rad1 {[%clk 0:02:14]}  Nc6 {[%clk 0:02:16]} 20. a3 {[%clk 0:02:10]}  Ne7 {[%clk 0:02:16]} 21. Nh4 {[%clk 0:02:07]}  Qc6 {[%clk 0:02:02]} 22. Qb3 {[%clk 0:02:06]}  Qb5 {[%clk 0:02:02]} 23. Qc2 {[%clk 0:02:06]}  Rc8 {[%clk 0:01:44]} 24. e5 {[%clk 0:01:56]}  dxe5 {[%clk 0:01:44]} 25. dxe5 {[%clk 0:01:56]}  Nfd5 {[%clk 0:01:44]} 26. Nhf5 {[%clk 0:01:49]}  Nxf5 {[%clk 0:01:31]} 27. Qxf5 {[%clk 0:01:26]}  Qc6 {[%clk 0:01:29]} 28. Qg4 {[%clk 0:01:19]}  Ne7 {[%clk 0:01:27]} 29. e6 {[%clk 0:01:16]}  Ng6 {[%clk 0:01:06]} 30. exf7+ {[%clk 0:01:06]}  Kxf7 {[%clk 0:01:07]} 31. Rd7+ {[%clk 0:01:01]}  Kg8 {[%clk 0:01:06]} 32. Rxe8+ {[%clk 0:00:48]}  Rxe8 {[%clk 0:01:07]} 33. Nf5 {[%clk 0:00:35]}  Qc1+ {[%clk 0:00:39]} 34. Kh2 {[%clk 0:00:30]}  Qf4+ {[%clk 0:00:40]} 35. Qxf4 {[%clk 0:00:29]}  Nxf4 {[%clk 0:00:41]} 36. Rxg7+ {[%clk 0:00:26]}  Kf8 {[%clk 0:00:38]} 37. Rxc7 {[%clk 0:00:27]}  Re5 {[%clk 0:00:36]} 38. Nxh6 {[%clk 0:00:23]}  Nd3 {[%clk 0:00:35]} 39. Rxb7 {[%clk 0:00:22]}  Nxf2 {[%clk 0:00:35]} 40. Ng4 {[%clk 0:00:22]}  Nxg4+ {[%clk 0:00:35]} 41. hxg4 {[%clk 0:00:23]}  Re3 {[%clk 0:00:35]} 42. Ra7 {[%clk 0:00:16]}  Rb3 {[%clk 0:00:34]} 43. Rxa6 {[%clk 0:00:16]}  Rxb2 {[%clk 0:00:34]} 44. Kg3 {[%clk 0:00:15]}  Kg7 {[%clk 0:00:33]} 45. a4 {[%clk 0:00:13]}  Rb3+ {[%clk 0:00:33]} 46. Kf4 {[%clk 0:00:13]}  Rb2 {[%clk 0:00:33]} 47. g3 {[%clk 0:00:10]}  Rb4+ {[%clk 0:00:33]} 48. Kg5 {[%clk 0:00:09]}  Rc4 {[%clk 0:00:31]} 49. Ra7+ {[%clk 0:00:09]}  Kg8 {[%clk 0:00:31]} 50. a5 {[%clk 0:00:09]}  Rc5+ {[%clk 0:00:31]} 51. Kh4 {[%clk 0:00:07]}  Rc6 {[%clk 0:00:31]} 52. g5 {[%clk 0:00:07]}  Rd6 {[%clk 0:00:30]} 53. Kh5 {[%clk 0:00:07]}  Rc6 {[%clk 0:00:30]} 54. g4 {[%clk 0:00:05]}  Rd6 {[%clk 0:00:27]} 55. g6 {[%clk 0:00:05]}  Rd1 {[%clk 0:00:27]} 56. a6 {[%clk 0:00:05]}  Ra1 {[%clk 0:00:27]} 57. Kh6 {[%clk 0:00:05]}  Rh1+ {[%clk 0:00:27]} 58. Kg5 {[%clk 0:00:05]}  Ra1 {[%clk 0:00:28]} 59. Kf5 {[%clk 0:00:05]}  Ra5+ {[%clk 0:00:26]} 60. Ke6 {[%clk 0:00:05]}  Ra1 {[%clk 0:00:21]} 61. Kf5 {[%clk 0:00:03]}  Ra2 {[%clk 0:00:21]} 62. Kf6 {[%clk 0:00:03]}  Rf2+ {[%clk 0:00:21]} 63. Ke6 {[%clk 0:00:04]}  Ra2 {[%clk 0:00:21]} 64. Kd5 {[%clk 0:00:04]}  Ra1 {[%clk 0:00:21]} 65. Ra8+ {[%clk 0:00:03]}  Kg7 {[%clk 0:00:21]} 66. Kc6 {[%clk 0:00:04]}  Re1 {[%clk 0:00:19]} 67. Rd8 {[%clk 0:00:03]}  Rc1+ {[%clk 0:00:18]} 68. Kb7 {[%clk 0:00:03]}  Rb1+ {[%clk 0:00:19]} 69. Ka8 {[%clk 0:00:03]}  Kxg6 {[%clk 0:00:19]} 70. Rb8 {[%clk 0:00:02]}  Rd1 {[%clk 0:00:18]} 71. Rb6+ {[%clk 0:00:02]}  Kg5 {[%clk 0:00:17]} 72. a7 {[%clk 0:00:02]}  Rd7 {[%clk 0:00:17]} 73. Kb8 {[%clk 0:00:02]}  Rd8+ {[%clk 0:00:18]} 74. Kb7 {[%clk 0:00:03]}  Rd7+ {[%clk 0:00:18]} 75. Ka6 {[%clk 0:00:04]}  Rd4 {[%clk 0:00:16]} 76. a8=Q {[%clk 0:00:04]} 1-0

[Event "December 5 Late 2023"]
[Site "https://www.chess.com"]
[Date "2023.12.05"]
[Round "6"]
[White "Bortnyk, Olexandr"]
[Black "Kovalev, Vladislav"]
[Result "1-0"]
[Board "8"]
[TimeControl "180+1"]
[WhiteFideId "14120828"]
[BlackFideId "13504398"]
[WhiteElo "3086"]
[BlackElo "2925"]
[WhiteTeam "UKR"]
[BlackTeam "FID"]
[WhiteClock "0:00:32"]
[BlackClock "0:00:00"]

1. e4 {[%clk 0:03:00]}  e5 {[%clk 0:02:59]} 2. Nf3 {[%clk 0:03:01]}  Nc6 {[%clk 0:02:59]} 3. Bb5 {[%clk 0:03:02]}  a6 {[%clk 0:03:00]} 4. Ba4 {[%clk 0:03:02]}  Nf6 {[%clk 0:03:00]} 5. Nc3 {[%clk 0:03:03]}  b5 {[%clk 0:02:53]} 6. Bb3 {[%clk 0:03:03]}  Bc5 {[%clk 0:02:54]} 7. Nd5 {[%clk 0:03:03]}  Nxd5 {[%clk 0:02:25]} 8. exd5 {[%clk 0:02:38]}  Nd4 {[%clk 0:02:23]} 9. Nxe5 {[%clk 0:02:37]}  d6 {[%clk 0:02:10]} 10. Nc6 {[%clk 0:02:28]}  Qg5 {[%clk 0:01:22]} 11. Nxd4 {[%clk 0:01:54]}  Bxd4 {[%clk 0:01:21]} 12. Qe2+ {[%clk 0:01:37]}  Kd8 {[%clk 0:01:21]} 13. O-O {[%clk 0:01:36]}  Re8 {[%clk 0:01:12]} 14. Qf3 {[%clk 0:01:32]}  Bg4 {[%clk 0:00:49]} 15. Qg3 {[%clk 0:01:30]}  Qg6 {[%clk 0:00:36]} 16. d3 {[%clk 0:01:11]}  Be5 {[%clk 0:00:23]} 17. Bf4 {[%clk 0:00:58]}  Bxb2 {[%clk 0:00:23]} 18. Rab1 {[%clk 0:00:56]}  Bc3 {[%clk 0:00:18]} 19. a4 {[%clk 0:00:55]}  b4 {[%clk 0:00:18]} 20. a5 {[%clk 0:00:56]}  Re2 {[%clk 0:00:11]} 21. Ba4 {[%clk 0:00:53]}  Bd7 {[%clk 0:00:06]} 22. Qf3 {[%clk 0:00:46]}  Bg4 {[%clk 0:00:05]} 23. Qg3 {[%clk 0:00:32]}  Bd7 {[%clk 0:00:05]} 24. Qf3 {[%clk 0:00:31]}  Bg4 {[%clk 0:00:03]} 25. Bg5+ {[%clk 0:00:31]}  Qxg5 {[%clk 0:00:03]} 26. Qxf7 {[%clk 0:00:32]}  h6 {[%clk 0:00:00]} 27. Qf8+ {[%clk 0:00:32]} 1-0

[Event "December 5 Late 2023"]
[Site "https://www.chess.com"]
[Date "2023.12.05"]
[Round "6"]
[White "Caruana, Fabiano"]
[Black "Xiong, Jeffery"]
[Result "0-1"]
[Board "9"]
[TimeControl "180+1"]
[WhiteFideId "2020009"]
[BlackFideId "2047640"]
[WhiteElo "3074"]
[BlackElo "3016"]
[WhiteTeam "USA"]
[BlackTeam "USA"]
[WhiteClock "0:00:02"]
[BlackClock "0:00:06"]

1. d4 {[%clk 0:03:00]}  c5 {[%clk 0:02:55]} 2. d5 {[%clk 0:03:00]}  e5 {[%clk 0:02:55]} 3. e4 {[%clk 0:03:00]}  d6 {[%clk 0:02:54]} 4. Nc3 {[%clk 0:03:00]}  a6 {[%clk 0:02:50]} 5. a4 {[%clk 0:02:59]}  g6 {[%clk 0:02:51]} 6. a5 {[%clk 0:02:58]}  Nd7 {[%clk 0:02:43]} 7. Nf3 {[%clk 0:02:58]}  b5 {[%clk 0:02:36]} 8. axb6 {[%clk 0:02:58]}  Nxb6 {[%clk 0:02:37]} 9. Be2 {[%clk 0:02:58]}  Bg7 {[%clk 0:02:26]} 10. O-O {[%clk 0:02:58]}  Ne7 {[%clk 0:02:21]} 11. Nd2 {[%clk 0:02:50]}  f5 {[%clk 0:02:20]} 12. f3 {[%clk 0:02:40]}  O-O {[%clk 0:02:18]} 13. Nb3 {[%clk 0:02:35]}  f4 {[%clk 0:02:18]} 14. Na5 {[%clk 0:02:34]}  g5 {[%clk 0:02:15]} 15. Bd2 {[%clk 0:02:34]}  h5 {[%clk 0:02:11]} 16. Be1 {[%clk 0:02:34]}  Kh7 {[%clk 0:02:07]} 17. h3 {[%clk 0:02:31]}  Rg8 {[%clk 0:02:04]} 18. Na4 {[%clk 0:02:25]}  Nxa4 {[%clk 0:02:00]} 19. Rxa4 {[%clk 0:02:26]}  Bf6 {[%clk 0:01:59]} 20. Ra3 {[%clk 0:02:24]}  Bd7 {[%clk 0:01:55]} 21. Bf2 {[%clk 0:02:08]}  Qf8 {[%clk 0:01:30]} 22. Nc4 {[%clk 0:02:05]}  Nc8 {[%clk 0:01:26]} 23. Rb3 {[%clk 0:02:05]}  Ra7 {[%clk 0:01:23]} 24. Rb8 {[%clk 0:02:03]}  Bd8 {[%clk 0:01:10]} 25. Qd2 {[%clk 0:01:33]}  a5 {[%clk 0:01:06]} 26. Rb3 {[%clk 0:01:22]}  a4 {[%clk 0:01:01]} 27. Ra3 {[%clk 0:01:22]}  Nb6 {[%clk 0:00:57]} 28. b4 {[%clk 0:01:18]}  Nxc4 {[%clk 0:00:53]} 29. Bxc4 {[%clk 0:01:18]}  g4 {[%clk 0:00:52]} 30. hxg4 {[%clk 0:01:14]}  hxg4 {[%clk 0:00:53]} 31. fxg4 {[%clk 0:01:15]}  Bxg4 {[%clk 0:00:53]} 32. bxc5 {[%clk 0:00:55]}  Rag7 {[%clk 0:00:54]} 33. Be1 {[%clk 0:00:55]}  f3 {[%clk 0:00:50]} 34. g3 {[%clk 0:00:51]}  Bg5 {[%clk 0:00:37]} 35. Qf2 {[%clk 0:00:44]}  Rf7 {[%clk 0:00:26]} 36. cxd6 {[%clk 0:00:38]}  Qxd6 {[%clk 0:00:25]} 37. Rxa4 {[%clk 0:00:37]}  Bh3 {[%clk 0:00:20]} 38. Ra6 {[%clk 0:00:25]}  Qf8 {[%clk 0:00:21]} 39. Qh2 {[%clk 0:00:25]}  Be3+ {[%clk 0:00:16]} 40. Bf2 {[%clk 0:00:25]}  Rxg3+ {[%clk 0:00:12]} 41. Qxg3 {[%clk 0:00:16]}  Rg7 {[%clk 0:00:12]} 42. Kh2 {[%clk 0:00:06]}  Bf4 {[%clk 0:00:09]} 43. Rg1 {[%clk 0:00:05]}  Bg2 {[%clk 0:00:06]} 44. Rxg2 {[%clk 0:00:02]}  fxg2 {[%clk 0:00:05]} 45. Kxg2 {[%clk 0:00:03]}  Bxg3 {[%clk 0:00:06]} 46. Bxg3 {[%clk 0:00:04]}  Qf4 {[%clk 0:00:06]} 47. Ra3 {[%clk 0:00:02]}  Qxe4+ {[%clk 0:00:06]} 0-1

[Event "December 5 Late 2023"]
[Site "https://www.chess.com"]
[Date "2023.12.05"]
[Round "6"]
[White "Pranav, V"]
[Black "Korchmar, Vasiliy"]
[Result "1-0"]
[Board "10"]
[TimeControl "180+1"]
[WhiteFideId "25060783"]
[BlackFideId "24131750"]
[WhiteElo "3055"]
[BlackElo "2805"]
[WhiteTeam "IND"]
[BlackTeam "RUS"]
[WhiteClock "0:00:47"]
[BlackClock "0:00:19"]

1. e4 {[%clk 0:03:00]}  c5 {[%clk 0:03:00]} 2. Nf3 {[%clk 0:03:01]}  d6 {[%clk 0:03:00]} 3. d4 {[%clk 0:03:01]}  cxd4 {[%clk 0:03:01]} 4. Nxd4 {[%clk 0:03:02]}  Nf6 {[%clk 0:03:02]} 5. Nc3 {[%clk 0:03:03]}  Nc6 {[%clk 0:03:02]} 6. Bg5 {[%clk 0:03:01]}  Bd7 {[%clk 0:03:02]} 7. Qd2 {[%clk 0:03:00]}  a6 {[%clk 0:03:02]} 8. Be2 {[%clk 0:02:59]}  e6 {[%clk 0:02:59]} 9. O-O-O {[%clk 0:02:56]}  Be7 {[%clk 0:02:57]} 10. Nxc6 {[%clk 0:02:46]}  Bxc6 {[%clk 0:02:55]} 11. f3 {[%clk 0:02:46]}  b5 {[%clk 0:02:50]} 12. h4 {[%clk 0:02:41]}  b4 {[%clk 0:02:47]} 13. Nb1 {[%clk 0:02:41]}  a5 {[%clk 0:02:26]} 14. Qe3 {[%clk 0:02:39]}  Qc7 {[%clk 0:02:21]} 15. Nd2 {[%clk 0:02:34]}  a4 {[%clk 0:02:15]} 16. Kb1 {[%clk 0:02:28]}  a3 {[%clk 0:01:52]} 17. b3 {[%clk 0:02:23]}  Rc8 {[%clk 0:01:51]} 18. Nc4 {[%clk 0:02:18]}  d5 {[%clk 0:01:47]} 19. Bxf6 {[%clk 0:02:12]}  Bxf6 {[%clk 0:01:34]} 20. exd5 {[%clk 0:02:11]}  Bd7 {[%clk 0:01:34]} 21. dxe6 {[%clk 0:02:04]}  fxe6 {[%clk 0:01:20]} 22. Nd6+ {[%clk 0:01:52]}  Ke7 {[%clk 0:01:21]} 23. Nxc8+ {[%clk 0:01:39]}  Rxc8 {[%clk 0:01:22]} 24. Bc4 {[%clk 0:01:39]}  Qb7 {[%clk 0:01:01]} 25. Rhe1 {[%clk 0:01:33]}  Rxc4 {[%clk 0:01:01]} 26. bxc4 {[%clk 0:01:32]}  Qc8 {[%clk 0:00:49]} 27. Qb6 {[%clk 0:01:25]}  Kf7 {[%clk 0:00:30]} 28. Qa7 {[%clk 0:01:20]}  Ke8 {[%clk 0:00:27]} 29. Qxd7+ {[%clk 0:00:49]}  Qxd7 {[%clk 0:00:27]} 30. Rxd7 {[%clk 0:00:50]}  Kxd7 {[%clk 0:00:27]} 31. Re4 {[%clk 0:00:50]}  Bc3 {[%clk 0:00:24]} 32. Kc1 {[%clk 0:00:49]}  e5 {[%clk 0:00:25]} 33. Kd1 {[%clk 0:00:49]}  Kd6 {[%clk 0:00:25]} 34. Ke2 {[%clk 0:00:49]}  Kc5 {[%clk 0:00:25]} 35. Kd3 {[%clk 0:00:50]}  h6 {[%clk 0:00:23]} 36. Rg4 {[%clk 0:00:49]}  h5 {[%clk 0:00:19]} 37. Rg5 {[%clk 0:00:47]} 1-0

[Event "December 5 Late 2023"]
[Site "https://www.chess.com"]
[Date "2023.12.05"]
[Round "6"]
[White "Oparin, Grigoriy"]
[Black "Ashraf, Artin"]
[Result "1-0"]
[Board "11"]
[TimeControl "180+1"]
[WhiteFideId "24125890"]
[BlackFideId "22514805"]
[WhiteElo "3049"]
[BlackElo "2890"]
[WhiteTeam "USA"]
[BlackTeam "IRI"]
[WhiteClock "0:00:15"]
[BlackClock "0:00:04"]

1. d4 {[%clk 0:03:00]}  d5 {[%clk 0:02:55]} 2. c4 {[%clk 0:03:01]}  dxc4 {[%clk 0:02:53]} 3. Nf3 {[%clk 0:03:02]}  Nf6 {[%clk 0:02:52]} 4. e3 {[%clk 0:03:02]}  e6 {[%clk 0:02:52]} 5. Bxc4 {[%clk 0:03:02]}  a6 {[%clk 0:02:51]} 6. O-O {[%clk 0:03:03]}  c5 {[%clk 0:02:49]} 7. Re1 {[%clk 0:03:04]}  cxd4 {[%clk 0:02:42]} 8. exd4 {[%clk 0:03:02]}  Be7 {[%clk 0:02:42]} 9. Nc3 {[%clk 0:03:02]}  O-O {[%clk 0:02:42]} 10. Bg5 {[%clk 0:02:56]}  Nc6 {[%clk 0:02:41]} 11. a3 {[%clk 0:02:39]}  h6 {[%clk 0:02:40]} 12. Bh4 {[%clk 0:02:37]}  Nh5 {[%clk 0:02:40]} 13. Bxe7 {[%clk 0:02:34]}  Qxe7 {[%clk 0:02:41]} 14. d5 {[%clk 0:02:34]}  Na5 {[%clk 0:02:02]} 15. Ba2 {[%clk 0:02:34]}  Qf6 {[%clk 0:02:00]} 16. d6 {[%clk 0:02:11]}  Rd8 {[%clk 0:01:56]} 17. Ne4 {[%clk 0:02:08]}  Qxb2 {[%clk 0:01:54]} 18. Re2 {[%clk 0:02:02]}  Qb5 {[%clk 0:01:31]} 19. Rb1 {[%clk 0:01:56]}  Qf5 {[%clk 0:01:17]} 20. Nd4 {[%clk 0:01:52]}  Qg6 {[%clk 0:01:14]} 21. Re3 {[%clk 0:01:43]}  Nf6 {[%clk 0:01:08]} 22. Nxf6+ {[%clk 0:01:20]}  Qxf6 {[%clk 0:01:07]} 23. Nf3 {[%clk 0:01:21]}  Nc6 {[%clk 0:00:54]} 24. Qd2 {[%clk 0:00:43]}  e5 {[%clk 0:00:47]} 25. Rd1 {[%clk 0:00:43]}  Be6 {[%clk 0:00:42]} 26. Bb1 {[%clk 0:00:39]}  Bf5 {[%clk 0:00:42]} 27. Bxf5 {[%clk 0:00:34]}  Qxf5 {[%clk 0:00:37]} 28. Qd5 {[%clk 0:00:33]}  Qe6 {[%clk 0:00:11]} 29. Qxe6 {[%clk 0:00:29]}  fxe6 {[%clk 0:00:12]} 30. Nxe5 {[%clk 0:00:29]}  Nxe5 {[%clk 0:00:13]} 31. Rxe5 {[%clk 0:00:30]}  Kf7 {[%clk 0:00:14]} 32. g3 {[%clk 0:00:27]}  Rd7 {[%clk 0:00:14]} 33. a4 {[%clk 0:00:21]}  Rad8 {[%clk 0:00:14]} 34. Rb1 {[%clk 0:00:22]}  Rb8 {[%clk 0:00:11]} 35. Rb6 {[%clk 0:00:21]}  Rc8 {[%clk 0:00:10]} 36. Re3 {[%clk 0:00:19]}  Rc6 {[%clk 0:00:10]} 37. Rf3+ {[%clk 0:00:17]}  Ke8 {[%clk 0:00:07]} 38. Rfb3 {[%clk 0:00:17]}  Rxb6 {[%clk 0:00:05]} 39. Rxb6 {[%clk 0:00:18]}  Kf7 {[%clk 0:00:04]} 40. f4 {[%clk 0:00:16]}  Kf6 {[%clk 0:00:04]} 41. Kf2 {[%clk 0:00:14]}  e5 {[%clk 0:00:05]} 42. Kf3 {[%clk 0:00:14]}  Ke6 {[%clk 0:00:03]} 43. Ke4 {[%clk 0:00:11]}  exf4 {[%clk 0:00:03]} 44. gxf4 {[%clk 0:00:12]}  Rxd6 {[%clk 0:00:03]} 45. f5+ {[%clk 0:00:12]}  Ke7 {[%clk 0:00:03]} 46. Rxb7+ {[%clk 0:00:12]}  Kf6 {[%clk 0:00:04]} 47. a5 {[%clk 0:00:13]}  Kg5 {[%clk 0:00:03]} 48. Rxg7+ {[%clk 0:00:13]}  Kh4 {[%clk 0:00:01]} 49. Rg6 {[%clk 0:00:13]}  Rd1 {[%clk 0:00:01]} 50. Rxh6+ {[%clk 0:00:13]}  Kg5 {[%clk 0:00:02]} 51. Rg6+ {[%clk 0:00:14]}  Kh5 {[%clk 0:00:03]} 52. Rxa6 {[%clk 0:00:15]}  Re1+ {[%clk 0:00:03]} 53. Kf4 {[%clk 0:00:14]}  Rf1+ {[%clk 0:00:04]} 54. Ke5 {[%clk 0:00:14]}  Re1+ {[%clk 0:00:05]} 55. Kf6 {[%clk 0:00:14]}  Kg4 {[%clk 0:00:06]} 56. Kg6 {[%clk 0:00:15]}  Rb1 {[%clk 0:00:07]} 57. f6 {[%clk 0:00:14]}  Rb8 {[%clk 0:00:04]} 58. f7 {[%clk 0:00:15]} 1-0

[Event "December 5 Late 2023"]
[Site "https://www.chess.com"]
[Date "2023.12.05"]
[Round "6"]
[White "Gokerkan, Cem Kaan"]
[Black "Duda, Jan-Krzysztof"]
[Result "0-1"]
[Board "12"]
[TimeControl "180+1"]
[WhiteFideId "6336760"]
[BlackFideId "1170546"]
[WhiteElo "2872"]
[BlackElo "3041"]
[WhiteTeam "TUR"]
[BlackTeam "POL"]
[WhiteClock "0:00:09"]
[BlackClock "0:00:42"]

1. e4 {[%clk 0:03:00]}  b6 {[%clk 0:03:00]} 2. d4 {[%clk 0:02:58]}  g6 {[%clk 0:03:00]} 3. h4 {[%clk 0:02:55]}  h6 {[%clk 0:03:00]} 4. f4 {[%clk 0:02:50]}  h5 {[%clk 0:02:58]} 5. Nc3 {[%clk 0:02:49]}  d6 {[%clk 0:02:54]} 6. Nf3 {[%clk 0:02:47]}  Bg7 {[%clk 0:02:54]} 7. Be3 {[%clk 0:02:46]}  Nf6 {[%clk 0:02:53]} 8. Ng5 {[%clk 0:02:44]}  O-O {[%clk 0:02:52]} 9. Bc4 {[%clk 0:02:42]}  Bg4 {[%clk 0:02:43]} 10. Qd3 {[%clk 0:02:36]}  e6 {[%clk 0:02:42]} 11. Bb3 {[%clk 0:02:25]}  d5 {[%clk 0:02:36]} 12. e5 {[%clk 0:02:18]}  Nh7 {[%clk 0:02:11]} 13. Nf3 {[%clk 0:02:09]}  a5 {[%clk 0:02:01]} 14. a3 {[%clk 0:01:56]}  Na6 {[%clk 0:01:59]} 15. Nh2 {[%clk 0:01:51]}  Bf5 {[%clk 0:01:57]} 16. Qe2 {[%clk 0:01:50]}  Qxh4+ {[%clk 0:01:46]} 17. Kd2 {[%clk 0:01:47]}  c5 {[%clk 0:01:46]} 18. Rag1 {[%clk 0:01:31]}  cxd4 {[%clk 0:01:45]} 19. Bxd4 {[%clk 0:01:01]}  Qxf4+ {[%clk 0:01:45]} 20. Be3 {[%clk 0:01:02]}  Qxe5 {[%clk 0:01:44]} 21. Nf3 {[%clk 0:00:51]}  Qg3 {[%clk 0:01:43]} 22. Bf2 {[%clk 0:00:47]}  Bh6+ {[%clk 0:01:28]} 23. Kd1 {[%clk 0:00:47]}  Qf4 {[%clk 0:01:28]} 24. Ke1 {[%clk 0:00:35]}  Nc5 {[%clk 0:01:25]} 25. Rh4 {[%clk 0:00:28]}  Qc1+ {[%clk 0:01:23]} 26. Nd1 {[%clk 0:00:29]}  a4 {[%clk 0:01:23]} 27. g4 {[%clk 0:00:23]}  axb3 {[%clk 0:00:53]} 28. gxf5 {[%clk 0:00:24]}  bxc2 {[%clk 0:00:54]} 29. fxg6 {[%clk 0:00:20]}  cxd1=Q+ {[%clk 0:00:52]} 30. Qxd1 {[%clk 0:00:21]}  Nd3+ {[%clk 0:00:52]} 31. Ke2 {[%clk 0:00:21]}  Qxd1+ {[%clk 0:00:51]} 32. Rxd1 {[%clk 0:00:20]}  Nf4+ {[%clk 0:00:49]} 33. Rxf4 {[%clk 0:00:20]}  Bxf4 {[%clk 0:00:50]} 34. gxh7+ {[%clk 0:00:20]}  Kxh7 {[%clk 0:00:51]} 35. Rh1 {[%clk 0:00:20]}  Kg6 {[%clk 0:00:46]} 36. Rg1+ {[%clk 0:00:20]}  Kh6 {[%clk 0:00:46]} 37. Bd4 {[%clk 0:00:17]}  e5 {[%clk 0:00:44]} 38. Bxb6 {[%clk 0:00:09]}  Rab8 {[%clk 0:00:42]} 0-1